fUSD/lending_fUSD_20260128
["ID","MTS","AMOUNT","RATE_DAILY","PERIOD"]
[403837593,1769583045240,-209.40437684,0.00016692,2]
[403837594,1769583045250,-155.0,0.00016711,2]
[403837595,1769583045259,-10076.80540011,0.00016711,2]
[403837596,1769583045268,-863.95,0.00016715,2]
[403837597,1769583045278,-217.15233878,0.00016747,2]
[403837598,1769583045287,-503.77912883,0.00016748,2]
[403837599,1769583045296,-225.18697532,0.00016802,2]
[403837602,1769583045305,-166.66,0.00016823,2]
[403837605,1769583045314,-233.51889341,0.00016857,2]
[403837607,1769583045324,-500.0,0.00016899,2]
[403837608,1769583045334,-519.88726717,0.00016899,2]
[403837609,1769583045343,-9058.37508753,0.000169,2]
[403837610,1769583045352,-242.15909246,0.00016912,2]
[403837611,1769583045361,-198.64506344,0.00016921,2]
[403837612,1769583045370,-501.11024626,0.00016921,2]
[403837613,1769583045379,-4187.0,0.00016951,2]
[403837614,1769583045388,-12243.04337453,0.00016956,2]
[403837615,1769583045397,-14322.5560634,0.00016956,2]
[403837617,1769583045406,-251.11897888,0.00016967,2]
[403837619,1769583045415,-2162.13,0.00016973,2]
[403837621,1769583045425,-171.046,0.00016973,2]
[403837623,1769583045439,-155.0,0.00016985,2]
[403837625,1769583045448,-863.95,0.00016989,2]
[403837627,1769583045457,-500.0,0.00016999,2]
[403837629,1769583045466,-500.0,0.00016999,2]
[403837631,1769583045477,-260.4103811,0.00017022,2]
[403837633,1769583045487,-270.0455652,0.00017077,2]
[403837635,1769583045496,-4187.0,0.00017092,2]
[403837637,1769583045507,-280.03725112,0.00017132,2]
[403837638,1769583045515,-166.66,0.00017149,2]
[403837639,1769583045525,-5888.0,0.00017155,2]
[403837641,1769583045534,-290.39862941,0.00017187,2]
[403837643,1769583045543,-5888.0,0.00017202,2]
[403837645,1769583045552,-181.08010149,0.0001724,2]
[403837647,1769583045562,-885.86649465,0.0001724,2]
[403837649,1769583045571,-301.1433787,0.00017242,2]
[403837651,1769583045580,-155.0,0.00017259,2]
[403837653,1769583045590,-863.95,0.00017263,2]
[403837655,1769583045599,-12243.04337453,0.0001727,2]
[403837657,1769583045609,-14322.5560634,0.0001727,2]
[403837658,1769583045619,-508.82801883,0.00017272,2]
[403837659,1769583045628,-500.0,0.00017272,2]
[403837660,1769583045637,-522.13176756,0.00017277,2]
[403837661,1769583045647,-225.4,0.00017377,2]
[403837662,1769583045655,-500.0,0.00017478,2]
[403837663,1769583045664,-155.0,0.00017533,2]
[403837664,1769583045673,-863.95,0.00017537,2]
[403837665,1769583045682,-877.25345748,0.0001756,2]
[403837666,1769583045691,-8623.0,0.00017567,2]
[403837667,1769583045700,-12243.04337453,0.00017585,2]
[403837668,1769583045709,-14322.5560634,0.00017585,2]
[403837669,1769583045718,-3487.934,0.000176,2]
[403837670,1769583045727,-1338.52,0.000176,2]
[403837671,1769583045737,-1414.751,0.000176,2]
[403837672,1769583045746,-617.145,0.000176,2]
[403837673,1769583045756,-184.736,0.000176,2]
[403837674,1769583045766,-1274.033,0.000176,2]
[403837675,1769583045776,-1208.946,0.000176,2]
[403837676,1769583045785,-6572.0,0.000176,2]
[403837677,1769583045794,-4832.0,0.000176,2]
[403837678,1769583045803,-567.0,0.000176,2]
[403837679,1769583045812,-1010.53040663,0.0001764,2]
[403837680,1769583045821,-5888.0,0.00017652,2]
[403837681,1769583045830,-205.99,0.00017689,2]
[403837682,1769583045839,-4000.0,0.000177,6]
[403837683,1769583045848,-5888.0,0.00017714,2]
[403837684,1769583045858,-9999.99,0.00017728,2]
[403837685,1769583045867,-9999.99,0.00017728,2]
[403837686,1769583045877,-299.99,0.00017728,4]
[403837687,1769583045888,-6045.63,0.00017728,2]
[403837688,1769583045897,-220.46,0.00017728,2]
[403837689,1769583045906,-150.99,0.00017728,2]
[403837690,1769583045915,-158.70124471,0.00017731,2]
[403837691,1769583045924,-5888.0,0.00017765,2]
[403837692,1769583045933,-187.78006525,0.00017788,2]
[403837693,1769583045943,-918.64355495,0.00017788,2]
[403837694,1769583045953,-5888.0,0.000178,2]
[403837695,1769583045966,-5100.0,0.000178,6]
[403837696,1769583045975,-155.0,0.00017807,2]
[403837697,1769583045984,-863.95,0.00017811,2]
[403837698,1769583045993,-727.95827,0.0001782,2]
[403837699,1769583046002,-727.95827,0.0001782,2]
[403837700,1769583046011,-1000.0,0.00017829,2]
[403837701,1769583046021,-200.0,0.00017856,2]
[403837702,1769583046030,-10000.0,0.000179,2]
[403837703,1769583046039,-164.74,0.000179,2]
[403837704,1769583046048,-12243.04337453,0.000179,2]
[403837705,1769583046057,-1000.0,0.000179,6]
[403837706,1769583046067,-14322.5560634,0.000179,2]
[403837707,1769583046076,-217.13537466,0.000179,2]
[403837708,1769583046085,-496.56720138,0.000179,2]
[403837709,1769583046094,-674.61065954,0.00017928,2]
[403837710,1769583046103,-500.0,0.00017973,2]
[403837711,1769583046112,-150.0,0.00017973,2]
[403837712,1769583046121,-222.7140054,0.00017982,2]
[403837713,1769583046130,-500.0,0.00017982,2]
[403837714,1769583046139,-255.4358691,0.0001799,2]
[403837715,1769583046147,-255.4358691,0.0001799,2]
[403837716,1769583046156,-154.5499553,0.00017997,2]
[403837717,1769583046165,-575.22582116,0.00017998,2]
[403837718,1769583046174,-508.88989411,0.00017998,2]
[403837719,1769583046183,-1062.6018402,0.00017998,2]
[403837720,1769583046192,-150.0,0.00017999,2]
[403837721,1769583046201,-150.0,0.00017999,2]
[403837722,1769583046210,-183.10914216,0.00017999,2]
[403837723,1769583046219,-243.65670637,0.00017999,2]
[403837724,1769583046228,-300.0,0.00017999,2]
[403837725,1769583046237,-666.0,0.00017999,2]
[403837726,1769583046246,-300.0,0.00017999,2]
[403837727,1769583046255,-500.0,0.00017999,2]
[403837728,1769583046264,-515.28066526,0.00017999,2]
[403837729,1769583046272,-300.0,0.00017999,2]
[403837730,1769583046281,-666.0,0.00017999,2]
[403837731,1769583046290,-300.0,0.00017999,2]
[403837732,1769583046299,-300.0,0.00017999,2]
[403837733,1769583046308,-666.0,0.00017999,2]
[403837734,1769583046317,-522.28270672,0.00017999,2]
[403837735,1769583046326,-3747849.81361514,0.00018,2]
[403837736,1769583046335,-189315.12467073,0.00018,2]
[403837737,1769583046344,-1801209.1934648,0.00018,2]
[403837738,1769583046353,-1191.25931111,0.00018,2]
[403837739,1769583046362,-29875.51083984,0.00018,2]
[403837740,1769583047138,-20120.54,0.00018,2]
[403837741,1769583047149,-400.88155885,0.00018,2]
[403837742,1769583047357,-2330.16641718,0.00015013,2]
[403837743,1769583047368,-1786.9332,0.00015013,2]
[403837744,1769583049910,-1072.22846481,0.00015013,2]
[403837745,1769583054119,734.53609167,0.00014977,2]
[403837746,1769583054167,734.53609167,0.00014977,2]
[403837747,1769583054216,734.53609167,0.00014977,2]
[403837748,1769583054267,734.53609167,0.00014977,2]
[403837749,1769583054321,734.53609167,0.00014977,2]
[403837750,1769583054393,734.53609167,0.00014977,2]
[403837751,1769583054446,734.53609167,0.00014977,2]
[403837752,1769583054503,734.53609167,0.00014977,2]
[403837753,1769583054551,734.53609167,0.00014977,2]
[403837754,1769583054644,734.53609167,0.00014977,2]
[403837755,1769583054690,734.53609167,0.00014977,2]
[403837756,1769583054738,734.53609167,0.00014977,2]
[403837757,1769583054795,469.16852535,0.00014977,2]
[403837758,1769583054824,265.36756632,0.00014977,2]
[403837759,1769583054892,734.53609167,0.00014977,2]
[403837760,1769583054942,734.53609167,0.00014977,2]
[403837761,1769583054993,734.53609167,0.00014977,2]
[403837762,1769583055153,734.53609167,0.00014977,2]
[403837763,1769583055198,734.53609167,0.00014977,2]
[403837764,1769583055265,734.53609167,0.00014977,2]
[403837765,1769583055309,734.53609167,0.00014977,2]
[403837766,1769583055348,734.53609167,0.00014977,2]
[403837767,1769583055391,734.53609167,0.00014977,2]
[403837768,1769583055434,734.53609167,0.00014977,2]
[403837769,1769583055479,734.53609167,0.00014977,2]
[403837770,1769583055540,734.53609167,0.00014977,2]
[403837771,1769583055578,734.53609167,0.00014977,2]
[403837772,1769583055617,185.67324197,0.00014977,2]
[403837773,1769583055643,548.8628497,0.00014977,2]
[403837774,1769583055688,734.53609167,0.00014977,2]
[403837775,1769583055735,734.53609167,0.00014977,2]
[403837776,1769583055776,734.53609167,0.00014977,2]
[403837777,1769583055835,734.53609167,0.00014977,2]
[403837778,1769583055875,734.53609167,0.00014977,2]
[403837779,1769583055915,734.53609167,0.00014977,2]
[403837780,1769583055955,734.53609167,0.00014977,2]
[403837781,1769583055995,734.53609167,0.00014977,2]
[403837782,1769583056060,734.53609167,0.00014977,2]
[403837783,1769583056103,734.53609167,0.00014977,2]
[403837784,1769583056144,734.53609167,0.00014977,2]
[403837785,1769583056209,734.53609167,0.00014977,2]
[403837786,1769583056254,636.71405026,0.00014977,2]
[403837787,1769583056282,97.82204141,0.00014977,2]
[403837788,1769583056327,734.53609167,0.00014977,2]
[403837789,1769583060371,9167.65186692,0.00014967,2]
[403837790,1769583060401,10000.01,0.00014967,2]
[403837791,1769583060433,10000.01,0.00014967,2]
[403837792,1769583060465,10000.01,0.00014967,2]
[403837793,1769583060496,10000.01,0.00014967,2]
[403837794,1769583060527,10000.01,0.00014967,2]
[403837795,1769583073485,800.0,0.000148,5]
[403837796,1769583075573,1600.0,0.000149,5]
[403837797,1769583092317,2558.913,0.00014668,2]
[403837798,1769583092727,204.51,0.00014668,2]
[403837799,1769583098126,3065.25190249,0.0001489,2]
[403837800,1769583141818,4171.33509751,0.000149,2]
[403837801,1769583141841,272.17151236,0.000149,2]
[403837802,1769583242275,150.0,0.00014966,2]
[403837803,1769583262068,505.62703457,0.00014872,2]
[403837804,1769583270147,239.94519057,0.00014966,2]
[403837805,1769583271190,500.0,0.00014966,2]
[403837806,1769583274062,328.50447292,0.00014966,2]
[403837807,1769583274335,394.47711337,0.00014966,2]
[403837808,1769583286058,500.0,0.00014966,2]
[403837809,1769583286145,500.0,0.00014966,2]
[403837810,1769583286202,500.0,0.00014966,2]
[403837811,1769583286335,500.0,0.00014966,2]
[403837812,1769583286396,500.0,0.00014966,2]
[403837813,1769583286445,500.0,0.00014966,2]
[403837814,1769583286496,500.0,0.00014966,2]
[403837815,1769583286552,500.0,0.00014966,2]
[403837816,1769583286610,500.0,0.00014966,2]
[403837817,1769583286659,500.0,0.00014966,2]
[403837818,1769583286709,500.0,0.00014966,2]
[403837819,1769583286759,500.0,0.00014966,2]
[403837820,1769583286817,500.0,0.00014966,2]
[403837821,1769583286893,500.0,0.00014966,2]
[403837822,1769583286944,500.0,0.00014966,2]
[403837823,1769583287414,109.28467621,0.00014966,2]
[403837824,1769583287471,390.71532379,0.00014966,2]
[403837825,1769583287521,278.42443578,0.00014966,2]
[403837826,1769583301648,1200.0,0.00014966,2]
[403837827,1769583422291,150.0,0.00014966,2]
[403837828,1769583425355,200.0,0.00014967,2]
[403837829,1769583427708,500.0,0.00014967,2]
[403837830,1769583428237,200.0,0.00014967,2]
[403837831,1769583428323,210.28593512,0.00014967,2]
[403837832,1769583431623,151.0,0.00014967,2]
[403837833,1769583432233,151.0,0.00014967,2]
[403837834,1769583433176,151.0,0.00014967,2]
[403837835,1769583433464,151.0,0.00014967,2]
[403837836,1769583434068,151.0,0.00014967,2]
[403837837,1769583434674,151.0,0.00014967,2]
[403837838,1769583434716,500.0,0.00014967,2]
[403837839,1769583435297,151.0,0.00014967,2]
[403837840,1769583435344,500.0,0.00014967,2]
[403837841,1769583435891,151.0,0.00014967,2]
[403837842,1769583435932,500.0,0.00014967,2]
[403837843,1769583436523,500.0,0.00014967,2]
[403837844,1769583436591,151.0,0.00014967,2]
[403837845,1769583437125,500.0,0.00014967,2]
[403837846,1769583437163,500.0,0.00014967,2]
[403837847,1769583437201,151.0,0.00014967,2]
[403837848,1769583437727,500.0,0.00014967,2]
[403837849,1769583437791,151.0,0.00014967,2]
[403837850,1769583437832,500.0,0.00014967,2]
[403837851,1769583438338,500.0,0.00014967,2]
[403837852,1769583438445,500.0,0.00014967,2]
[403837853,1769583439284,209.58430531,0.00014967,2]
[403837854,1769583439310,290.41569469,0.00014967,2]
[403837855,1769583439349,500.0,0.00014967,2]
[403837856,1769583439565,500.0,0.00014967,2]
[403837857,1769583439632,500.0,0.00014967,2]
[403837858,1769583440166,500.0,0.00014967,2]
[403837859,1769583440240,500.0,0.00014967,2]
[403837860,1769583440769,500.0,0.00014967,2]
[403837861,1769583440842,500.0,0.00014967,2]
[403837862,1769583441453,500.0,0.00014967,2]
[403837863,1769583442056,500.0,0.00014967,2]
[403837864,1769583442664,500.0,0.00014967,2]
[403837865,1769583443788,500.0,0.00014967,2]
[403837866,1769583446279,200.0,0.00014967,2]
[403837867,1769583484333,2758.72671225,0.00014869,2]
[403837868,1769583529449,1250.86759306,0.00014867,2]
[403837869,1769583529479,1249.13240694,0.00014867,2]
[403837871,1769583601464,1200.0,0.00014966,2]
[403837872,1769583601855,150.0,0.00014966,2]
[403837873,1769583604294,274.0,0.00014967,2]
[403837874,1769583614328,151.0,0.00014964,2]
[403837885,1769583649840,500.0,0.00014966,2]
[403837886,1769583650090,509.33160404,0.00014966,2]
[403837887,1769583655540,151.0,0.00014967,2]
[403837888,1769583655671,151.0,0.00014967,2]
[403837889,1769583655715,151.0,0.00014967,2]
[403837890,1769583655754,151.0,0.00014967,2]
[403837895,1769583673672,5362.54598902,0.00014867,2]
[403837896,1769583673698,10000.01,0.00014867,2]
[403837897,1769583679249,-2966.92688902,0.00014867,2]
[403837898,1769583692269,2047.13,0.00014668,2]
[403837899,1769583692367,163.608,0.00014668,2]
[403837900,1769583781504,300.0,0.00014866,2]
[403837901,1769583901235,1200.0,0.00014866,2]
[403837902,1769584035309,151.0,0.00014867,2]
[403837903,1769584036274,151.0,0.00014867,2]
[403837904,1769584036517,151.0,0.00014867,2]
[403837905,1769584037120,151.0,0.00014867,2]
[403837906,1769584037724,151.0,0.00014867,2]
[403837907,1769584038331,151.0,0.00014867,2]
[403837908,1769584039239,163.22283804,0.00014867,2]
[403837909,1769584043896,900.0,0.000148,5]
[403837910,1769584045988,1800.0,0.000149,5]
[403837911,1769584048962,-4066.15622196,0.00014867,2]
[403837912,1769584048994,-537.48296681,0.00014869,2]
[403837913,1769584069558,-254.70657904,0.00014877,2]
[403837914,1769584069590,-2482.85404098,0.00014877,2]
[403837915,1769584081111,4524.88875996,0.00014867,2]
[403837916,1769584081141,10000.01,0.00014867,2]
[403837917,1769584081169,10000.01,0.00014867,2]
[403837918,1769584081197,10000.01,0.00014867,2]
[403837919,1769584081226,10000.01,0.00014867,2]
[403837920,1769584081255,10000.01,0.00014867,2]
[403837921,1769584081282,10000.01,0.00014867,2]
[403837922,1769584081309,10000.01,0.00014867,2]
[403837923,1769584081338,10000.01,0.00014867,2]
[403837924,1769584081366,10000.01,0.00014867,2]
[403837925,1769584094315,-1175.99584789,0.00014867,2]
[403837926,1769584095361,-10000.01,0.00014867,2]
[403837927,1769584095931,-10000.01,0.00014867,2]
[403837928,1769584096801,-10000.01,0.00014867,2]
[403837929,1769584097855,-10000.01,0.00014867,2]
[403837930,1769584097971,-10000.01,0.00014867,2]
[403837955,1769584141792,150.0,0.00014866,2]
[403837956,1769584144251,1726.552638,0.00014867,2]
[403837957,1769584147730,539.886745,7.945e-05,2]
[403837958,1769584174593,397.47769512,0.00014767,2]
[403837967,1769584201294,1200.0,0.00014866,2]
[403837970,1769584203347,273.0,0.00014867,2]
[403837971,1769584217446,242.05151373,0.00014767,2]
[403837980,1769584233074,-528.12118031,0.00014867,2]
[403837981,1769584233085,-1905.14323361,0.00014867,2]
[403837982,1769584233095,-1741.76684916,0.00014867,2]
[403837983,1769584233106,-3558.18510261,0.00014867,2]
[403837984,1769584233117,-73688.92648373,0.00014867,2]
[403837985,1769584233128,-29860.99308942,0.00014867,2]
[403837986,1769584233139,-13885.68883197,0.00014867,2]
[403837987,1769584233150,-3373.61357432,0.00014867,2]
[403837988,1769584233176,-1059.18764589,0.00014867,2]
[403837989,1769584233186,-3759.15475901,0.00014867,2]
[403837990,1769584233197,-429.03935746,0.00014867,2]
[403837991,1769584233210,-676.92004919,0.00014867,2]
[403837992,1769584238410,-181725.13069907,0.00014867,2]
[403837993,1769584238471,-27237.16713191,0.00014867,2]
[403838009,1769584240392,-860.26404269,0.00014867,2]
[403838010,1769584240403,-6647.8156347,0.00014867,2]
[403838011,1769584240466,-2442.54556274,0.00014867,2]
[403838012,1769584240477,-15158.03767839,0.00014867,2]
[403838013,1769584240534,-935761.27448597,0.00014867,2]
[403838014,1769584240543,-11280.7361,0.00014867,2]
[403838015,1769584240551,-2500.0,0.00014867,2]
[403838016,1769584240560,-500.0,0.00014966,2]
[403838017,1769584240569,-510.50875951,0.00014966,2]
[403838018,1769584240578,-285.79091132,0.00014967,2]
[403838019,1769584240588,-153.94607315,0.00014967,2]
[403838020,1769584240596,-500.0,0.00014977,2]
[403838021,1769584240606,-28077.10461801,0.00015013,2]
[403838022,1769584240615,-4317.5585,0.00015013,2]
[403838023,1769584240624,-1000.0,0.00015013,2]
[403838024,1769584240633,-150.00227968,0.0001506,2]
[403838025,1769584240643,-376.01573071,0.00015112,2]
[403838026,1769584240651,-500.0,0.00015112,2]
[403838027,1769584240660,-61991.46872404,0.00015557,2]
[403838028,1769584240669,-500.0,0.0001589,2]
[403838029,1769584240678,-751.84,0.00015995,2]
[403838030,1769584240687,-255.0,0.00015996,2]
[403838031,1769584240696,-150.65763047,0.00015999,2]
[403838032,1769584240705,-403.0,0.00016018,2]
[403838033,1769584240717,-447.82,0.00016079,2]
[403838034,1769584240727,-201.04,0.00016101,2]
[403838035,1769584240736,-3240.0,0.00016102,2]
[403838036,1769584240745,-447.82,0.00016104,2]
[403838037,1769584240754,-447.82,0.00016129,2]
[403838038,1769584240763,-447.82,0.00016155,2]
[403838039,1769584240772,-447.82,0.0001618,2]
[403838040,1769584240782,-447.82,0.00016206,2]
[403838041,1769584240795,-150.0,0.0001622,2]
[403838042,1769584240805,-447.82,0.00016231,2]
[403838043,1769584240815,-447.82,0.00016256,2]
[403838044,1769584240825,-447.82,0.00016282,2]
[403838045,1769584240834,-447.82,0.00016307,2]
[403838046,1769584240843,-184.05,0.0001631,2]
[403838047,1769584240852,-447.82,0.00016333,2]
[403838048,1769584240861,-527.73,0.00016342,2]
[403838049,1769584240871,-166.17,0.0001635,2]
[403838051,1769584240881,-1680.0,0.00016353,2]
[403838053,1769584240891,-250.0,0.00016354,2]
[403838055,1769584240900,-2500.0,0.00016354,2]
[403838057,1769584240909,-600.0,0.00016354,2]
[403838059,1769584240918,-254.07533624,0.00016354,2]
[403838061,1769584240927,-250.0,0.00016354,2]
[403838063,1769584240936,-250.0,0.00016354,2]
[403838065,1769584240946,-300.0,0.00016354,2]
[403838067,1769584240955,-447.82,0.00016358,2]
[403838069,1769584240966,-500.0,0.00016373,2]
[403838071,1769584240975,-501.53607282,0.00016373,2]
[403838073,1769584240983,-447.82,0.00016383,2]
[403838075,1769584240992,-13015.81,0.00016388,2]
[403838077,1769584241002,-1557.26000184,0.00016397,2]
[403838079,1769584241011,-447.82,0.00016409,2]
[403838081,1769584241019,-447.82,0.00016434,2]
[403838083,1769584241028,-500.0,0.00016438,2]
[403838085,1769584241037,-500.0,0.00016438,2]
[403838087,1769584241046,-500.0,0.00016438,2]
[403838089,1769584241055,-500.0,0.00016438,2]
[403838091,1769584241064,-500.0,0.00016438,2]
[403838093,1769584241073,-500.0,0.00016438,2]
[403838095,1769584241082,-500.0,0.00016438,2]
[403838097,1769584241091,-500.0,0.00016438,2]
[403838099,1769584241100,-500.0,0.00016438,2]
[403838101,1769584241108,-500.0,0.00016438,2]
[403838103,1769584241118,-562.68007086,0.00016438,2]
[403838105,1769584241128,-500.0,0.00016438,2]
[403838106,1769584241138,-500.0,0.00016438,2]
[403838108,1769584241147,-500.0,0.00016438,2]
[403838110,1769584241156,-500.0,0.00016438,2]
[403838113,1769584241166,-500.0,0.00016438,2]
[403838115,1769584241176,-500.0,0.00016438,2]
[403838116,1769584241185,-500.0,0.00016438,2]
[403838119,1769584241195,-500.0,0.00016438,2]
[403838120,1769584241205,-500.0,0.00016438,2]
[403838123,1769584241214,-500.0,0.00016438,2]
[403838124,1769584241223,-500.0,0.00016438,2]
[403838126,1769584241232,-500.0,0.00016438,2]
[403838129,1769584241241,-500.0,0.00016438,2]
[403838131,1769584241251,-500.0,0.00016438,2]
[403838132,1769584241260,-500.0,0.00016438,2]
[403838134,1769584241269,-500.0,0.00016438,2]
[403838137,1769584241278,-288.0,0.00016438,2]
[403838138,1769584241287,-500.0,0.00016438,2]
[403838140,1769584241296,-500.0,0.00016438,2]
[403838142,1769584241304,-500.0,0.00016438,2]
[403838144,1769584241313,-500.0,0.00016438,2]
[403838146,1769584241322,-500.0,0.00016438,2]
[403838148,1769584241331,-500.0,0.00016438,2]
[403838150,1769584241340,-1114.0,0.00016438,2]
[403838152,1769584241349,-447.82,0.0001646,2]
[403838154,1769584241358,-195.0,0.00016463,2]
[403838156,1769584241368,-447.82,0.00016485,2]
[403838158,1769584241379,-2280.75,0.00016496,2]
[403838160,1769584241388,-447.82,0.0001651,2]
[403838162,1769584241396,-447.82,0.00016536,2]
[403838164,1769584241405,-447.82,0.00016561,2]
[403838166,1769584241414,-3007.71,0.00016605,2]
[403838168,1769584241423,-433.22631816,0.00016644,2]
[403838170,1769584241431,-288.0,0.00016712,2]
[403838172,1769584241440,-578.20924308,0.00016787,2]
[403838174,1769584241449,-721.12765535,0.00016787,2]
[403838176,1769584241457,-174.61919141,0.00016787,2]
[403838178,1769584241466,-2000.0,0.00016787,2]
[403838180,1769584241475,-2000.0,0.00016787,2]
[403838182,1769584241484,-322.6107,0.00016787,2]
[403838184,1769584241492,-155.43682529,0.00016787,2]
[403838186,1769584241501,-854.2589148,0.00016787,2]
[403838187,1769584241510,-209.40437684,0.00016787,2]
[403838190,1769584241519,-751.84,0.00016795,2]
[403838192,1769584241528,-217.15233878,0.00016842,2]
[403838194,1769584241537,-6689.0,0.00016889,2]
[403838196,1769584241549,-225.18697532,0.00016897,2]
[403838198,1769584241558,-1000.0,0.00016921,2]
[403838200,1769584241567,-233.51889341,0.00016952,2]
[403838202,1769584241575,-500.0,0.00016959,2]
[403838204,1769584241584,-288.00857683,0.00016986,2]
[403838206,1769584241593,-250.0,0.00017,2]
[403838244,1769584241921,-242.15909246,0.00017007,2]
[403838248,1769584241959,-251.11897888,0.00017062,2]
[403838250,1769584241968,-260.4103811,0.00017117,2]
[403838252,1769584241978,-270.0455652,0.00017172,2]
[403838254,1769584241987,-433.0,0.00017215,2]
[403838256,1769584241996,-168.0,0.00017216,2]
[403838258,1769584242005,-280.03725112,0.00017227,2]
[403838260,1769584242014,-290.39862941,0.00017282,2]
[403838262,1769584242023,-1333.0,0.00017297,2]
[403838263,1769584242033,-3477.0,0.00017297,2]
[403838264,1769584242042,-615.0,0.00017297,2]
[403838265,1769584242052,-184.0,0.00017297,2]
[403838266,1769584242061,-1270.0,0.00017297,2]
[403838267,1769584242071,-1204.0,0.00017297,2]
[403838268,1769584242081,-928.806,0.00017297,2]
[403838269,1769584242090,-2443.0,0.00017297,2]
[403838270,1769584242100,-6572.0,0.00017297,2]
[403838271,1769584242109,-4832.0,0.00017297,2]
[403838272,1769584242119,-181.08010149,0.00017335,2]
[403838273,1769584242128,-885.86649465,0.00017335,2]
[403838274,1769584242137,-301.1433787,0.00017337,2]
[403838275,1769584242146,-736.0,0.00017444,2]
[403838276,1769584242156,-736.0,0.00017459,2]
[403838277,1769584242165,-1005.52548547,0.00017468,2]
[403838278,1769584242175,-209.28929397,0.00017478,2]
[403838279,1769584242184,-736.0,0.00017538,2]
[403838280,1769584242193,-751.84,0.00017595,2]
[403838281,1769584242203,-150.173,0.000176,2]
[403838282,1769584242212,-150.149,0.000176,2]
[403838283,1769584242221,-505.26520331,0.0001764,2]
[403838284,1769584242230,-736.0,0.00017675,2]
[403838285,1769584242240,-150.0,0.00017699,2]
[403838286,1769584242250,-150.0,0.00017699,2]
[403838287,1769584242260,-150.0,0.00017699,2]
[403838288,1769584242270,-150.0,0.00017699,2]
[403838289,1769584242280,-150.0,0.00017699,2]
[403838290,1769584242290,-150.0,0.00017699,2]
[403838291,1769584242299,-150.0,0.00017699,2]
[403838292,1769584242308,-150.0,0.00017699,2]
[403838293,1769584242317,-213.25042822,0.00017699,2]
[403838294,1769584242327,-150.0,0.00017699,2]
[403838295,1769584242335,-150.0,0.00017699,2]
[403838296,1769584242345,-243.9850094,0.00017699,2]
[403838297,1769584242354,-150.0,0.00017699,2]
[403838298,1769584242363,-150.0,0.00017699,2]
[403838299,1769584242372,-150.0,0.00017699,2]
[403838300,1769584242381,-150.0,0.00017699,2]
[403838301,1769584242391,-150.0,0.00017699,2]
[403838302,1769584242400,-150.0,0.00017699,2]
[403838303,1769584242409,-202.74321403,0.00017699,2]
[403838304,1769584242419,-150.0,0.00017699,2]
[403838305,1769584242428,-150.0,0.00017699,2]
[403838306,1769584242439,-500.0,0.00017699,2]
[403838307,1769584242448,-500.0,0.00017699,2]
[403838308,1769584242457,-150.0,0.00017699,2]
[403838309,1769584242467,-150.0,0.00017699,2]
[403838310,1769584242476,-150.0,0.00017699,2]
[403838311,1769584242485,-150.0,0.00017699,2]
[403838312,1769584242495,-150.0,0.00017699,2]
[403838313,1769584242504,-158.70124471,0.00017702,2]
[403838314,1769584242514,-9999.99,0.00017728,2]